bitfinex/quotes_ETHUSD_20250711
["timestamp","ask_amount","ask_price","bid_price","bid_amount"]
[1752200219791,0.4604,2958.9,2958.8,9.67356211]
[1752200219989,5.6804,2958.9,2958.8,9.67356211]
[1752200222211,5.563e-05,2959.1,2958.9,0.0842]
[1752200222417,5.563e-05,2959.1,2959.0,15.25854493]
[1752200222721,5.99845563,2959.1,2958.8,0.001]
[1752200223106,1.06024556,2959.0,2958.8,0.001]
[1752200223310,5.219,2958.9,2958.8,0.001]
[1752200223485,5.6794,2958.9,2958.8,10.001]
[1752200226919,5.219,2958.9,2958.8,10.001]
[1752200227118,0.77945563,2959.1,2958.8,10.001]
[1752200227316,5.218,2959.0,2958.8,10.001]
[1752200227530,0.4604,2958.9,2958.8,10.001]
[1752200229327,5.218,2959.0,2958.8,10.001]
[1752200229627,5.6784,2959.0,2958.8,10.001]
[1752200231332,5.563e-05,2959.1,2958.8,10.001]
[1752200231509,5.218,2959.0,2958.8,0.001]
[1752200231825,5.6784,2959.0,2958.9,15.25854493]
[1752200232028,5.217,2959.0,2958.9,15.25854493]
[1752200232523,5.6774,2959.0,2958.9,15.25854493]
[1752200232930,5.563e-05,2959.1,2958.9,15.25854493]
[1752200233228,5.217,2959.0,2958.9,15.25854493]
[1752200234138,5.6774,2959.0,2958.9,15.25854493]
[1752200234341,5.217,2959.0,2958.9,15.34274493]
[1752200234874,0.4604,2959.0,2958.9,10.0]
[1752200234999,0.4604,2959.0,2958.8,0.001]
[1752200235000,0.797,2958.9,2958.8,0.001]
[1752200235627,1.2574,2958.9,2958.8,0.001]
[1752200235998,6.4734,2958.9,2958.8,0.001]
[1752200238433,7.3034,2958.9,2958.8,0.001]
[1752200238649,11.41357988,2958.9,2958.8,0.001]
[1752200239514,8.03394556,2958.9,2958.8,0.001]
[1752200241644,7.48394556,2958.9,2958.8,0.001]
[1752200242739,2.26794556,2958.9,2958.8,0.001]
[1752200242939,7.48294556,2958.9,2958.8,0.001]
[1752200243136,2.26794556,2958.9,2958.8,0.001]
[1752200243336,7.48294556,2958.9,2958.8,0.001]
[1752200246192,2.26794556,2958.9,2958.8,0.001]
[1752200246357,7.48294556,2958.9,2958.8,0.001]
[1752200246671,0.28,2958.9,2958.8,0.001]
[1752200246856,5.495,2958.9,2958.8,5.25954493]
[1752200247355,5.494,2958.9,2958.8,15.25954493]
[1752200249467,5.9663,2958.9,2958.8,15.25954493]
[1752200250661,0.7523,2958.9,2958.8,15.25954493]
[1752200250959,5.6863,2958.9,2958.8,15.25954493]
[1752200253664,7.08303,2958.9,2958.8,0.001]
[1752200254506,5.78283,2958.9,2958.8,0.001]
[1752200254667,0.002,2959.0,2958.8,0.001]
[1752200254994,5.213,2958.9,2958.8,0.001]
[1752200255763,0.002,2959.0,2958.8,0.001]
[1752200255964,0.002,2959.0,2958.9,15.25854493]
[1752200256194,5.214,2959.0,2958.9,15.25854493]
[1752200256983,5.6863,2959.0,2958.9,10.0]
[1752200257185,5.214,2959.0,2958.9,10.0]
[1752200259716,0.002,2959.0,2958.9,10.0]
[1752200260005,5.213,2959.0,2958.9,10.0]
[1752200261292,0.002,2959.0,2958.9,10.0]
[1752200261495,5.213,2959.0,2958.9,10.0]
[1752200263712,5.212,2959.0,2958.9,10.0]
[1752200264216,0.002,2959.0,2958.9,10.0]
[1752200264417,5.212,2959.0,2958.9,10.0842]
[1752200266013,5.212,2959.0,2958.9,10.0]
[1752200276317,0.002,2959.0,2958.9,10.0842]
[1752200276615,5.208,2959.0,2958.9,10.0842]
[1752200277557,0.002,2959.0,2958.9,10.0842]
[1752200277759,0.002,2959.0,2958.9,10.1643]
[1752200278135,0.002,2959.0,2958.9,10.0842]
[1752200278492,0.515,2959.9,2959.1,0.0842]
[1752200278765,0.515,2959.9,2959.5,5.25854493]
[1752200278766,5.206,2959.8,2959.5,5.25854493]
[1752200278938,0.475,2959.7,2959.5,5.25854493]
[1752200279263,0.04,2959.9,2959.6,10.0]
[1752200279420,0.04,2959.9,2959.8,15.25854493]
[1752200279626,5.721,2959.9,2959.8,15.25854493]
[1752200280061,7.8724,2959.9,2959.8,10.0]
[1752200280261,7.8724,2959.9,2959.6,5.25854493]
[1752200280460,0.475,2959.8,2959.6,5.25854493]
[1752200280755,0.475,2959.7,2959.6,15.25854493]
[1752200284298,0.475,2959.7,2959.6,10.0]
[1752200284500,1.26244,2959.7,2959.6,10.0]
[1752200284660,1.26244,2959.7,2959.3,5.25854493]
[1752200284860,5.679,2959.6,2959.3,5.25854493]
[1752200285176,0.475,2959.5,2959.3,5.25854493]
[1752200285375,0.475,2959.4,2959.3,5.25854493]
[1752200286001,5.204,2959.6,2959.3,5.25854493]
[1752200286171,5.204,2959.6,2959.4,10.0]
[1752200286793,0.475,2959.5,2959.4,10.0]
[1752200286995,5.204,2959.6,2959.4,10.0]
[1752200287300,0.042,2959.9,2959.4,10.0]
[1752200287496,0.042,2959.9,2959.8,5.25854493]
[1752200287707,5.245,2959.9,2959.8,15.25854493]
[1752200288194,0.042,2959.9,2959.8,15.25854493]
[1752200288412,5.245,2959.9,2959.8,15.25854493]
[1752200290187,5.245,2959.9,2959.8,15.25854493]
[1752200290490,0.042,2959.9,2959.8,15.25854493]
[1752200290690,5.244,2959.9,2959.8,15.25854493]
[1752200291503,0.042,2959.9,2959.8,15.25854493]
[1752200291703,5.204,2960.1,2959.9,10.0]
[1752200291906,5.204,2960.1,2959.8,5.34274493]
[1752200292302,5.204,2960.1,2959.9,0.03378492]
[1752200292876,0.28,2960.8,2960.0,0.0842]
[1752200293205,0.475,2960.8,2960.7,5.25854493]
[1752200293505,0.04,2960.9,2960.7,5.25854493]
[1752200293709,5.676,2960.8,2960.7,5.25854493]
[1752200294410,0.04,2960.9,2960.8,10.0]
[1752200294702,0.7571,2960.8,2960.6,10.0]
[1752200295072,0.475,2960.7,2960.6,10.0]
[1752200295278,5.241,2960.9,2960.6,10.0]
[1752200295478,5.241,2960.9,2960.8,5.25854493]
[1752200295702,5.241,2960.9,2960.1,0.1643]
[1752200295903,0.515,2960.9,2960.8,10.0]
[1752200296097,5.715,2960.9,2960.8,10.0]
[1752200296272,6.36241,2960.9,2960.6,10.0]
[1752200296476,0.475,2960.8,2960.6,10.0]
[1752200297077,5.2,2960.7,2960.6,10.0]
[1752200297387,0.04,2960.9,2960.6,10.0]
[1752200297707,0.04,2960.9,2960.8,15.25854493]
[1752200297902,10.44,2960.9,2960.8,15.25854493]
[1752200299690,10.44,2960.9,2960.8,15.33864493]
[1752200300507,0.28,2962.6,2960.9,10.0842]
[1752200300693,5.199,2962.2,2961.8,15.34274493]
[1752200300887,5.199,2962.3,2961.8,15.34274493]
[1752200301078,5.199,2962.3,2961.8,15.42284493]
[1752200302183,5.199,2962.2,2961.8,15.42284493]
[1752200302392,0.5101,2962.9,2962.0,0.0842]
[1752200302636,5.199,2962.8,2962.7,10.0]
[1752200302823,0.57091,2962.8,2962.7,10.0]
[1752200303024,5.6691,2962.8,2962.7,10.0]
[1752200303315,5.198,2962.8,2962.7,10.0]
[1752200303530,5.6681,2962.8,2962.7,10.0]
[1752200304613,5.6681,2962.8,2962.7,10.10085156]
[1752200305414,0.04,2962.9,2962.8,0.0842]
[1752200305629,5.237,2962.9,2962.7,10.10085156]
[1752200305808,5.237,2962.9,2962.8,0.10084816]
[1752200305986,5.7071,2962.9,2962.8,0.10084816]
[1752200307107,7.10971,2962.9,2962.8,0.10084816]
[1752200307538,11.03478172,2962.9,2962.8,0.10084816]
[1752200307822,0.8319,2962.5,2961.4,5.59585713]
[1752200308125,6.82781,2962.9,2961.5,10.0]
[1752200308126,0.8319,2962.3,2961.5,10.0]
[1752200308287,0.8319,2962.3,2961.4,5.59585713]
[1752200308288,10.8621,2962.2,2961.4,5.59585713]
[1752200308488,10.392,2962.2,2961.5,10.0]
[1752200308794,0.4701,2962.1,2961.4,0.0842]
[1752200311219,0.8164,2962.0,2961.0,7.87387349]
[1752200311406,0.8164,2962.0,2961.1,10.0]
[1752200311407,10.8611,2961.9,2961.1,10.0]
[1752200311612,10.391,2961.9,2961.2,0.0842]
[1752200312226,10.8611,2961.9,2961.2,0.0842]
[1752200312524,10.8611,2961.9,2961.1,10.25758945]
[1752200312525,10.8611,2961.9,2961.1,10.0]
[1752200312732,10.8611,2961.9,2960.9,10.0]
[1752200312733,0.4701,2961.8,2960.9,10.0]
[1752200312905,0.4701,2961.8,2961.0,0.03377237]
[1752200313229,0.4701,2961.8,2960.9,10.0]
[1752200315729,10.391,2961.9,2961.3,10.0]
[1752200315896,10.391,2961.9,2961.3,10.0842]
[1752200316315,11.2074,2962.0,2961.4,0.03376781]
[1752200316526,3.37530401,2962.7,2961.7,10.0842]
[1752200316527,5.195,2962.5,2961.7,10.0842]
[1752200316723,5.195,2962.5,2962.3,10.0]
[1752200316902,5.195,2962.4,2962.3,10.0]
[1752200318125,5.6651,2962.4,2962.3,10.0]
[1752200318500,5.195,2962.4,2962.3,10.0]
[1752200320231,0.4701,2962.8,2962.3,10.0]
[1752200320399,5.195,2962.5,2962.3,10.0]
[1752200321030,5.6651,2962.5,2962.3,10.0]
[1752200321199,0.4701,2962.4,2962.3,10.0]
[1752200321596,0.04,2962.9,2962.3,10.0]
[1752200321801,5.194,2962.8,2962.3,10.0]
[1752200322003,0.7909,2962.6,2962.3,10.0]
[1752200322310,0.4701,2962.5,2962.3,10.0]
[1752200322506,5.194,2962.4,2962.3,10.0]
[1752200322707,5.6641,2962.4,2961.9,10.0]
[1752200322934,0.7671,2962.2,2961.1,0.0842]
[1752200323120,5.6641,2962.1,2961.0,8.04021904]
[1752200323302,1.2372,2962.0,2961.0,8.04021904]
[1752200323501,0.4701,2961.9,2961.0,8.04021904]
[1752200324130,0.4701,2961.9,2961.1,10.0]
[1752200324297,0.4701,2961.9,2961.0,8.04021904]
[1752200324724,0.4701,2961.9,2961.1,10.0]
[1752200325431,0.7671,2962.0,2961.5,10.0]
[1752200325598,1.11322,2961.9,2961.1,10.0]
[1752200325802,0.8039,2961.7,2961.0,8.04021904]
[1752200326003,0.8039,2961.7,2961.0,0.16634555]
[1752200326004,5.6641,2961.6,2961.0,0.16634555]
[1752200326201,0.4701,2961.5,2961.0,0.16634555]
[1752200326424,0.4701,2961.4,2961.0,0.16634555]
[1752200326930,0.4701,2961.3,2961.0,0.16634555]
[1752200327112,5.194,2961.2,2961.0,0.16634555]
[1752200327308,5.194,2961.2,2961.0,0.16734555]
[1752200327712,1.274,2961.7,2961.1,10.0]
[1752200327905,5.195,2961.6,2961.1,10.0]
[1752200328104,0.28,2961.8,2961.1,10.0]
[1752200328302,5.475,2961.8,2961.5,10.0]
[1752200328802,0.28,2961.8,2961.5,10.0]
[1752200329023,0.28,2961.8,2961.6,0.03376553]
[1752200329230,0.04,2962.9,2961.5,10.0842]
[1752200329231,0.4701,2962.7,2961.5,10.0842]
[1752200329428,9.3744,2962.5,2962.1,10.0]
[1752200329736,5.197,2962.4,2962.1,10.0]
[1752200330153,5.199,2962.4,2962.1,10.0]
[1752200330803,0.4731,2962.3,2962.1,10.0]
[1752200331206,5.199,2962.4,2962.1,10.0]
[1752200331712,5.197,2962.3,2962.1,10.0]
[1752200332834,1.0387,2962.8,2962.2,0.0842]
[1752200333028,5.196,2962.5,2962.2,0.0842]
[1752200333336,5.196,2962.5,2962.1,10.0]
[1752200334339,5.195,2962.5,2962.1,10.0]
[1752200337869,5.195,2962.5,2962.2,0.31136338]
[1752200338158,5.195,2962.5,2962.3,0.31136338]
[1752200338374,5.195,2962.5,2962.4,0.31136338]
[1752200339235,5.194,2962.5,2962.4,0.31136338]
[1752200339838,5.6671,2962.5,2962.4,0.31136338]
[1752200341749,5.194,2962.5,2962.4,0.31136338]
[1752200342697,6.23381,2962.5,2962.4,0.31136338]
[1752200342831,7.04521,2962.5,2962.4,0.31136338]
[1752200348579,6.4785,2962.5,2962.4,0.31136338]
[1752200349577,6.4785,2962.5,2961.3,0.0842]
[1752200349881,0.4731,2962.4,2961.3,0.0842]
[1752200350182,5.194,2962.3,2961.3,0.0842]
[1752200350377,0.4731,2962.2,2961.3,0.0842]
[1752200350576,5.194,2962.1,2961.3,0.0842]
[1752200350773,0.4731,2962.0,2961.3,0.0842]
[1752200351094,1.83431,2962.0,2961.1,10.0842]
[1752200351383,0.4731,2961.9,2961.1,0.0842]
[1752200351569,5.194,2961.8,2961.1,10.0]
[1752200351882,0.4731,2961.7,2961.1,10.0]
[1752200352052,0.4731,2961.7,2961.0,8.04121904]
[1752200352252,0.8329,2961.6,2961.1,10.0]
[1752200352551,5.6671,2961.5,2961.0,8.04121904]
[1752200352752,5.6671,2961.5,2961.0,0.16734555]
[1752200352753,0.4731,2961.4,2961.0,0.16734555]
[1752200352956,0.4731,2961.3,2961.0,0.16734555]
[1752200353162,5.194,2961.2,2961.0,0.16734555]
[1752200354497,5.6671,2961.2,2961.0,0.16734555]
[1752200354977,5.194,2961.2,2961.0,0.16734555]
[1752200355276,5.6671,2961.2,2961.0,0.16734555]
[1752200356483,5.6671,2961.2,2961.0,0.001]
[1752200356703,1.2694,2961.9,2961.1,0.0842]
[1752200356992,5.194,2961.8,2961.4,10.0]
[1752200357156,5.6671,2961.8,2961.4,10.0]
[1752200357750,5.194,2961.7,2961.4,10.0]
[1752200357951,0.4731,2962.0,2961.4,10.0]
[1752200358353,5.194,2961.9,2961.4,10.0]
[1752200358984,5.6671,2961.9,2961.4,10.0]
[1752200359208,0.4731,2961.9,2961.4,10.0]
[1752200359497,5.194,2961.8,2961.4,10.0]
[1752200361790,5.194,2961.7,2961.4,10.0]
[1752200362736,5.6671,2961.9,2961.4,10.0]
[1752200362994,5.194,2961.8,2961.4,10.0]
[1752200363165,0.7738,2962.1,2961.4,10.0]
[1752200363373,0.4363,2962.1,2961.5,0.0842]
[1752200363588,5.194,2962.0,2961.5,0.0842]
[1752200363782,0.4363,2962.1,2961.8,10.0]
[1752200363990,0.8155,2962.4,2961.8,10.0]
[1752200364191,5.6303,2962.3,2961.8,10.0]
[1752200364360,5.194,2962.3,2961.8,10.0]
[1752200364561,0.4363,2962.2,2961.8,10.0]
[1752200364871,0.4363,2962.1,2961.8,10.0]
[1752200367416,5.6303,2962.3,2961.8,10.0]
[1752200367585,5.194,2962.3,2961.8,10.0]
[1752200367766,0.4363,2962.2,2961.8,10.0]
[1752200368207,0.4363,2962.1,2961.8,10.0]
[1752200368771,0.4363,2962.1,2962.0,5.24814812]
[1752200368998,0.4363,2962.1,2962.0,15.24814812]
[1752200369303,0.4363,2962.1,2962.0,10.0]
[1752200369473,1.80253,2962.1,2962.0,10.0]
[1752200370811,1.80253,2962.1,2961.5,5.24814812]
[1752200371017,0.7711,2961.9,2961.2,5.24814812]
[1752200371185,0.7711,2961.7,2961.0,0.001]
[1752200371811,0.4363,2961.6,2961.0,0.001]
[1752200371985,0.4363,2961.6,2961.2,10.0]
[1752200372187,0.4363,2961.9,2961.4,5.24814812]
[1752200372506,5.194,2961.8,2961.7,15.24814812]
[1752200372914,5.194,2961.8,2961.7,10.0]
[1752200373494,0.4363,2961.9,2961.7,10.0]
[1752200373725,0.4363,2962.1,2961.8,10.0]
[1752200374058,5.6303,2962.0,2961.4,10.0]
[1752200374317,0.4363,2962.0,2961.5,0.03376667]
[1752200374509,0.4363,2962.0,2961.6,0.0842]
[1752200374510,5.194,2961.9,2961.6,0.0842]
[1752200376895,0.04,2962.9,2961.8,10.0]
[1752200376896,1.21,2962.8,2961.8,10.0]
[1752200377097,5.194,2962.7,2962.2,10.0842]
[1752200377510,0.4363,2962.6,2962.0,10.0842]
[1752200378333,5.194,2962.5,2962.0,10.0842]
[1752200379200,5.6303,2962.5,2962.0,10.0842]
[1752200379600,5.194,2962.5,2962.0,10.0842]
[1752200379824,5.193,2962.5,2962.0,10.0842]
[1752200381934,5.6293,2962.5,2962.0,10.0842]
[1752200382130,0.4363,2962.4,2962.0,10.0]
[1752200382321,1.2435,2962.3,2961.7,0.0842]
[1752200382534,0.4363,2962.2,2961.7,0.0842]
[1752200382739,5.193,2962.1,2961.7,0.0842]
[1752200382907,5.6293,2962.1,2961.7,0.0842]
[1752200383109,5.6293,2962.1,2961.5,10.0]
[1752200383110,0.4363,2962.0,2961.5,10.0]
[1752200383346,0.793,2961.8,2961.0,0.001]
[1752200383548,0.55,2962.8,2961.0,0.001]
[1752200383549,0.4363,2962.2,2961.5,0.0842]
[1752200383720,0.4363,2962.2,2961.5,10.11796667]
[1752200383721,5.6293,2962.2,2961.5,10.11796667]
[1752200383913,5.6293,2962.2,2961.5,10.0842]
[1752200384110,5.6293,2962.2,2961.8,7.87353896]
[1752200384457,0.7965,2962.7,2962.0,0.0842]
[1752200384659,5.193,2962.6,2962.4,10.0]
[1752200385037,5.6293,2962.6,2962.4,10.0]
[1752200385211,0.4363,2962.5,2962.4,10.0]
[1752200386131,0.4363,2962.5,2962.3,10.0]
[1752200386334,0.4363,2962.5,2962.2,10.0]
[1752200386645,6.4258,2962.7,2962.2,10.0]
[1752200386833,5.9895,2962.7,2962.2,10.0]
[1752200387037,0.4363,2962.6,2962.2,10.0]
[1752200389754,1.2256,2963.0,2962.5,7.87353896]
[1752200389945,5.193,2962.8,2962.6,10.0]
[1752200390428,5.6366,2962.8,2962.6,10.0]
[1752200390628,5.193,2962.8,2962.6,10.0]
[1752200390967,0.4436,2962.7,2962.6,10.0]
[1752200396174,5.193,2962.8,2962.6,10.0]
[1752200396468,5.6366,2962.8,2962.6,10.0]
[1752200396658,5.193,2962.8,2962.6,10.0]
[1752200396969,0.4436,2962.7,2962.2,10.0]
[1752200397371,0.4436,2962.7,2962.3,0.03375755]
[1752200398166,0.4436,2962.7,2962.6,5.2451503]
[1752200398877,0.04,2962.9,2962.6,5.2451503]
[1752200398878,0.04,2962.9,2962.7,10.0]
[1752200399171,0.04,2962.9,2962.8,0.03375185]
[1752200399471,0.04,2962.9,2962.7,10.70030877]
[1752200400575,0.04,2962.9,2962.7,10.181]
[1752200400876,0.04,2962.9,2962.8,17.86433144]
[1752200401078,2.46855131,2963.5,2962.9,10.0842]
[1752200401079,1.71255131,2963.5,2962.9,10.0842]
[1752200401377,1.71255131,2963.5,2963.4,17.86433144]
[1752200401543,2.95575131,2963.5,2962.7,0.0842]
[1752200401745,0.7996,2963.3,2962.3,13.05533144]
[1752200402053,5.6346,2963.2,2962.4,10.0]
[1752200402258,0.8008,2963.0,2962.0,5.192]
[1752200402471,0.4436,2962.9,2962.0,0.001]
[1752200402781,0.8008,2962.7,2962.0,0.001]
[1752200402986,0.8008,2962.7,2962.0,10.001]
[1752200403182,0.8008,2962.7,2962.0,0.001]
[1752200403359,0.4436,2962.6,2962.0,0.001]
[1752200403557,0.4436,2962.6,2962.0,10.001]
[1752200404647,5.191,2962.6,2962.4,10.0]
[1752200404883,5.6346,2962.6,2962.4,10.0]
[1752200405958,0.4436,2962.5,2962.4,10.0]
[1752200408185,0.4436,2962.5,2962.0,0.001]
[1752200408856,0.4436,2962.4,2962.0,0.001]
[1752200409361,5.191,2962.6,2962.0,0.001]
[1752200409362,0.4436,2962.3,2962.0,0.001]
[1752200409565,6.0111,2962.2,2962.0,0.001]
[1752200409774,6.4547,2962.2,2962.0,0.001]
[1752200409964,0.4436,2962.1,2962.0,0.001]
[1752200411090,1.2637,2962.1,2962.0,0.001]
[1752200411388,1.90917,2962.1,2962.0,0.001]
[1752200411555,1.46557,2962.1,2962.0,0.001]
[1752200411751,1.90917,2962.1,2962.0,0.001]
[1752200414399,1.5437,2962.1,2962.0,0.001]
[1752200422195,6.7357,2962.1,2962.0,0.001]
[1752200428124,1.5437,2962.1,2962.0,0.001]
[1752200428429,6.7357,2962.1,2962.0,0.001]
[1752200428717,1.5437,2962.1,2962.0,0.001]
[1752200428918,6.7357,2962.1,2962.0,0.001]
[1752200432934,0.28,2962.1,2962.0,5.25017832]
[1752200433134,0.28,2962.1,2962.0,15.33437832]
[1752200433135,5.472,2962.1,2962.0,15.33437832]
[1752200433508,5.472,2962.1,2962.0,15.25017832]
[1752200433831,5.472,2962.1,2962.0,10.001]
[1752200433832,5.9318,2962.1,2962.0,10.001]
[1752200434833,5.472,2962.1,2962.0,10.001]
[1752200435599,0.4598,2962.3,2962.0,10.001]
[1752200435798,5.6518,2962.2,2962.0,10.001]
[1752200436212,0.4598,2962.1,2962.0,10.001]
[1752200436412,5.192,2962.2,2962.0,10.001]
[1752200436614,5.6518,2962.2,2962.0,10.001]
[1752200437632,5.6518,2962.2,2962.1,5.24917832]
[1752200439111,0.4598,2962.4,2962.1,5.24917832]
[1752200439432,5.6518,2962.3,2962.1,5.24917832]
[1752200439616,5.192,2962.2,2962.1,5.24917832]
[1752200440319,8.098,2962.5,2962.2,10.0]
[1752200440632,8.098,2962.5,2962.4,15.24917832]
[1752200440840,13.29,2962.5,2962.4,15.24917832]
[1752200441336,8.098,2962.5,2962.4,15.24917832]
[1752200441506,13.29,2962.5,2962.4,15.24917832]
[1752200442341,13.289,2962.5,2962.4,15.24917832]
[1752200442636,8.098,2962.5,2962.4,15.24917832]
[1752200442841,8.098,2962.5,2962.4,15.43017832]
[1752200443050,13.289,2962.5,2962.4,15.51437832]
[1752200443347,0.002,2962.9,2962.4,15.51437832]
[1752200443543,0.002,2962.9,2962.8,15.24917832]
[1752200443744,5.193,2962.9,2962.8,15.24917832]
[1752200444743,0.002,2962.9,2962.8,15.24917832]
[1752200444946,5.193,2962.9,2962.8,15.24917832]
[1752200445147,0.002,2962.9,2962.8,15.24917832]
[1752200445336,5.193,2962.9,2962.8,15.24917832]
[1752200445534,0.002,2962.9,2962.8,15.24917832]
[1752200445733,1.71255131,2963.5,2962.9,0.0842]
[1752200446057,1.71255131,2963.5,2963.2,15.24917832]
[1752200446058,5.191,2963.4,2963.2,15.24917832]
[1752200446926,1.71255131,2963.5,2963.4,0.0842]
[1752200447129,1.71255131,2963.5,2963.4,0.2652]
[1752200448332,1.71255131,2963.5,2963.4,0.0842]
[1752200448534,1.71255131,2963.5,2963.1,0.0842]
[1752200449044,1.71255131,2963.5,2962.9,10.0]
[1752200449045,1.2262,2963.4,2962.8,0.0842]
[1752200449246,5.19,2963.3,2962.8,0.0842]
[1752200449553,0.4598,2963.2,2962.5,0.0842]
[1752200449739,0.4598,2963.2,2962.5,10.0842]
[1752200449939,0.4598,2963.2,2962.5,0.0842]
[1752200450138,1.10142,2963.2,2962.1,0.0842]
[1752200450457,0.4322,2963.1,2962.1,0.0842]
[1752200450616,5.19,2963.0,2962.2,7.86361661]
[1752200450818,5.19,2963.0,2962.3,10.0]
[1752200451013,0.4322,2962.9,2962.3,0.16284845]
[1752200451227,0.77,2962.8,2962.3,0.16284845]
[1752200451425,5.6222,2962.7,2962.4,0.16284295]
[1752200451626,0.4322,2962.7,2962.4,0.16284295]
[1752200451852,5.19,2962.6,2962.4,0.16284295]
[1752200452015,0.77,2963.2,2962.4,0.16284295]
[1752200452216,0.4322,2963.1,2962.4,0.24704295]
[1752200452416,5.196,2963.0,2962.4,0.24704295]
[1752200453354,0.4322,2963.1,2962.4,0.24704295]
[1752200453524,5.196,2962.9,2962.4,0.24704295]
[1752200453946,5.6282,2962.9,2962.4,0.24704295]
[1752200454750,0.4322,2962.8,2962.4,0.24704295]
[1752200455452,5.195,2962.7,2962.4,0.24704295]
[1752200455867,5.195,2962.7,2962.4,0.16284295]
[1752200456227,0.4322,2962.9,2962.4,0.16284295]
[1752200456428,5.193,2962.8,2962.7,10.0]
[1752200456851,5.192,2962.8,2962.7,10.0]
[1752200457053,0.28,2963.1,2962.7,10.0]
[1752200457236,5.192,2963.0,2962.7,10.0842]
[1752200457830,0.7122,2963.4,2962.7,10.0842]
[1752200458051,5.192,2963.3,2962.7,10.0842]
[1752200458252,5.192,2963.2,2962.7,10.0842]
[1752200458559,5.192,2963.2,2963.1,10.0]
[1752200459146,0.28,2963.4,2963.1,10.0]
[1752200459447,5.192,2963.3,2963.1,10.0]
[1752200459625,0.28,2963.4,2963.1,10.0]
[1752200459824,1.71255131,2963.5,2963.2,0.0842]
[1752200460026,6.90355131,2963.5,2963.4,17.86361661]
[1752200462145,6.90355131,2963.5,2963.4,10.0]
[1752200463851,6.90555131,2963.5,2963.4,10.0]
[1752200465853,6.90355131,2963.5,2963.4,10.0]
[1752200469809,7.33575131,2963.5,2963.4,10.0]
[1752200470377,8.15231644,2963.5,2963.4,10.0]
[1752200470897,1.71455131,2963.5,2963.4,10.0]
[1752200471074,6.90255131,2963.5,2963.4,10.0]
[1752200471275,7.33475131,2963.5,2963.4,10.0]
[1752200472006,1.71455131,2963.5,2963.4,10.0]
[1752200472307,6.90655131,2963.5,2963.4,10.0]
[1752200473204,1.71455131,2963.5,2963.4,10.0]
[1752200473402,6.90655131,2963.5,2963.4,10.0]
[1752200473783,1.71455131,2963.5,2963.4,10.0]
[1752200473985,6.90455131,2963.5,2963.4,10.0]
[1752200474701,1.71455131,2963.5,2963.4,10.0]
[1752200474900,6.90455131,2963.5,2963.4,10.0]
[1752200475872,6.90355131,2963.5,2963.4,10.0]
[1752200478510,1.71455131,2963.5,2963.4,10.0]
[1752200478680,6.90255131,2963.5,2963.4,10.0]
[1752200479175,1.71455131,2963.5,2963.4,10.0]
[1752200479374,6.90255131,2963.5,2963.4,10.0]
[1752200479581,1.71455131,2963.5,2963.4,10.0]
[1752200479785,6.90255131,2963.5,2963.4,10.0]
[1752200480305,5.188,2963.7,2963.4,10.0842]
[1752200480707,5.188,2963.7,2963.4,10.0]
[1752200480877,0.4436,2963.6,2963.4,10.0]
[1752200481080,5.188,2963.5,2963.4,10.0]
[1752200481876,2.22000001,2963.8,2963.4,10.181]
[1752200482080,2.22000001,2963.8,2963.7,17.86361661]
[1752200482309,7.40800001,2963.8,2963.7,17.86361661]
[1752200482615,7.40800001,2963.8,2963.7,10.0]
[1752200482616,7.85160001,2963.8,2963.7,10.0]
[1752200486800,7.85360001,2963.8,2963.7,15.24162156]
[1752200487215,7.41000001,2963.8,2963.7,15.24162156]
[1752200487719,7.40800001,2963.8,2963.7,15.24162156]
[1752200487917,7.85160001,2963.8,2963.7,15.24162156]
[1752200489118,7.85160001,2963.8,2963.7,10.0]
[1752200489325,7.85160001,2963.8,2963.7,15.24162156]
[1752200493641,8.62466616,2963.8,2963.2,0.0842]
[1752200493847,1.2413,2963.7,2963.0,5.24162156]
[1752200494048,5.6306,2963.6,2963.0,5.24162156]
[1752200494247,0.4436,2963.5,2963.1,10.0]
[1752200494435,5.187,2963.4,2962.9,0.001]
[1752200494751,1.37086,2963.3,2962.9,0.001]
[1752200494931,5.187,2963.2,2962.9,0.001]
[1752200495133,5.6306,2963.2,2962.9,0.001]
[1752200495327,0.4436,2963.1,2962.9,10.001]
[1752200495527,5.187,2963.0,2962.9,10.001]
[1752200495850,5.6306,2963.0,2962.9,10.001]
[1752200496747,7.00696,2963.0,2962.9,0.001]
[1752200497742,7.55696,2963.0,2962.9,0.001]
[1752200497951,4.73837172,2962.9,2962.8,0.001]
[1752200498166,0.9936,2962.9,2962.0,0.001]
[1752200498365,0.8133,2962.6,2962.0,0.001]
[1752200498534,0.8133,2962.4,2962.0,0.001]
[1752200498738,5.187,2962.3,2962.0,0.001]
[1752200498932,0.8259,2962.2,2962.0,0.001]
[1752200499139,5.187,2962.1,2962.0,0.001]
[1752200499431,5.6306,2962.1,2962.0,0.001]